fUST/lending_fUST_20250203
["ID","MTS","AMOUNT","RATE_DAILY","PERIOD"]
[351409312,1738557040665,-500.0,0.00016575,2]
[351409313,1738557040686,-500.0,0.00016575,2]
[351409314,1738557040697,-500.0,0.00016575,2]
[351409315,1738557040710,-521.91521285,0.00016575,2]
[351409316,1738557040721,-500.0,0.00016575,2]
[351409317,1738557040730,-500.0,0.00016575,2]
[351409318,1738557040743,-500.0,0.00016575,2]
[351409319,1738557040753,-500.0,0.00016575,2]
[351409320,1738557040763,-500.0,0.00016575,2]
[351409321,1738557040773,-500.0,0.00016575,2]
[351409323,1738557040784,-1661.42,0.00016575,2]
[351409325,1738557040794,-500.0,0.00016575,2]
[351409327,1738557040804,-500.0,0.00016575,2]
[351409329,1738557040815,-500.0,0.00016575,2]
[351409331,1738557040827,-542.12,0.00016575,2]
[351409333,1738557040837,-500.0,0.00016575,2]
[351409335,1738557040847,-500.0,0.00016575,2]
[351409337,1738557040858,-500.0,0.00016575,2]
[351409339,1738557040868,-511.71,0.00016575,2]
[351409341,1738557040878,-500.0,0.00016575,2]
[351409343,1738557040888,-500.0,0.00016575,2]
[351409344,1738557040898,-500.0,0.00016575,2]
[351409345,1738557040908,-500.0,0.00016575,2]
[351409346,1738557040918,-500.0,0.00016575,2]
[351409347,1738557040928,-1110.8,0.00016575,2]
[351409348,1738557040940,-500.0,0.00016575,2]
[351409349,1738557040952,-12926.36,0.00016575,2]
[351409350,1738557040961,-552.83,0.00016575,2]
[351409351,1738557040971,-500.0,0.00016575,2]
[351409352,1738557040981,-500.0,0.00016575,2]
[351409353,1738557040990,-500.0,0.00016575,2]
[351409354,1738557041000,-1286.63,0.00016575,2]
[351409355,1738557041010,-248.28545999,0.00016575,2]
[351409356,1738557041020,-969.84,0.00016575,2]
[351409357,1738557041030,-500.0,0.00016575,2]
[351409358,1738557041040,-2675.49,0.00016575,2]
[351409359,1738557041049,-8643.22,0.00016575,2]
[351409360,1738557041059,-384.50511464,0.00016575,2]
[351409361,1738557041069,-561.34,0.00016575,2]
[351409362,1738557041078,-500.0,0.00016575,2]
[351409363,1738557041087,-500.0,0.00016575,2]
[351409364,1738557041097,-1193.45,0.00016575,2]
[351409365,1738557041107,-500.0,0.00016575,2]
[351409366,1738557041117,-500.0,0.00016575,2]
[351409367,1738557041127,-612.53,0.00016575,2]
[351409368,1738557041137,-500.0,0.00016575,2]
[351409369,1738557041147,-602.65244376,0.00016575,2]
[351409370,1738557041157,-466.46865929,0.00016575,2]
[351409371,1738557041167,-1672.26,0.00016575,2]
[351409372,1738557041177,-500.0,0.00016575,2]
[351409373,1738557041190,-429.25498124,0.00016575,2]
[351409374,1738557041199,-67.42824292,0.00016575,2]
[351409375,1738557041479,-432.57175708,0.00016575,2]
[351409376,1738557041489,-500.0,0.00016575,2]
[351409377,1738557041499,-500.0,0.00016575,2]
[351409378,1738557041512,-500.0,0.00016575,2]
[351409379,1738557041522,-910.71,0.00016575,2]
[351409380,1738557041532,-500.0,0.00016575,2]
[351409381,1738557041542,-515.28692259,0.00016575,2]
[351409382,1738557041551,-527.5529708,0.00016575,2]
[351409383,1738557041561,-835.74,0.00016575,2]
[351409384,1738557041571,-500.0,0.00016575,2]
[351409385,1738557041580,-500.0,0.00016575,2]
[351409386,1738557041590,-831.84,0.00016575,2]
[351409387,1738557041600,-500.0,0.00016575,2]
[351409388,1738557041609,-2474.8,0.00016575,2]
[351409389,1738557041619,-500.0,0.00016575,2]
[351409390,1738557041628,-257.06580851,0.00016575,2]
[351409391,1738557041638,-594.12,0.00016575,2]
[351409392,1738557041647,-500.0,0.00016575,2]
[351409393,1738557041657,-500.0,0.00016575,2]
[351409394,1738557041666,-892.44,0.00016575,2]
[351409395,1738557041675,-500.0,0.00016575,2]
[351409396,1738557041689,-500.0,0.00016575,2]
[351409397,1738557041699,-560.47425121,0.00016575,2]
[351409398,1738557041709,-500.0,0.00016575,2]
[351409399,1738557041719,-500.0,0.00016575,2]
[351409400,1738557041728,-4300.26,0.00016575,2]
[351409401,1738557041738,-500.0,0.00016575,2]
[351409402,1738557041747,-3192.9,0.00016575,2]
[351409403,1738557041756,-500.0,0.00016575,2]
[351409404,1738557041765,-1783.89,0.00016575,2]
[351409405,1738557041774,-500.0,0.00016575,2]
[351409406,1738557041783,-500.0,0.00016575,2]
[351409407,1738557041793,-500.0,0.00016575,2]
[351409408,1738557041804,-500.0,0.00016575,2]
[351409409,1738557041814,-1724.01,0.00016575,2]
[351409410,1738557041823,-500.0,0.00016575,2]
[351409411,1738557041833,-508.22207345,0.00016575,2]
[351409412,1738557041843,-429.58784351,0.00016575,2]
[351409413,1738557041852,-604.66,0.00016575,2]
[351409414,1738557041862,-706.76,0.00016575,2]
[351409415,1738557041872,-516.47135968,0.00016575,2]
[351409416,1738557041882,-6189.11,0.00016575,2]
[351409417,1738557041892,-795.0,0.00016575,2]
[351409418,1738557041902,-2150.6,0.00016575,2]
[351409419,1738557041911,-500.0,0.00016575,2]
[351409420,1738557041921,-500.0,0.00016575,2]
[351409421,1738557041931,-500.0,0.00016575,2]
[351409422,1738557041944,-500.0,0.00016575,2]
[351409423,1738557041953,-621.3643056,0.00016575,2]
[351409424,1738557041963,-500.0,0.00016575,2]
[351409425,1738557041972,-500.0,0.00016575,2]
[351409426,1738557041982,-647.49,0.00016575,2]
[351409427,1738557041991,-500.0,0.00016575,2]
[351409428,1738557042002,-500.0,0.00016575,2]
[351409429,1738557042011,-500.0,0.00016575,2]
[351409430,1738557042021,-500.0,0.00016575,2]
[351409431,1738557042030,-500.0,0.00016575,2]
[351409432,1738557042040,-500.0,0.00016575,2]
[351409433,1738557042049,-500.0,0.00016575,2]
[351409434,1738557042058,-738.76,0.00016575,2]
[351409435,1738557042067,-242.46147363,0.00016711,2]
[351409436,1738557042076,-500.0,0.00016711,2]
[351409437,1738557042085,-500.0,0.00016711,2]
[351409438,1738557042094,-406.74142959,0.00016711,2]
[351409439,1738557042103,-500.0,0.00016712,2]
[351409440,1738557042112,-500.0,0.00016712,2]
[351409441,1738557042121,-500.0,0.00016712,2]
[351409442,1738557042131,-385.21669434,0.00016712,2]
[351409443,1738557042140,-500.0,0.00016712,2]
[351409444,1738557042149,-500.0,0.00016712,2]
[351409445,1738557042159,-500.0,0.00016712,2]
[351409446,1738557042168,-500.0,0.00016712,2]
[351409447,1738557042178,-502.86696219,0.00016712,2]
[351409448,1738557042189,-500.0,0.00016712,2]
[351409449,1738557042198,-485.66,0.00016712,2]
[351409450,1738557042206,-500.0,0.00016712,2]
[351409451,1738557042215,-500.0,0.00016712,2]
[351409452,1738557042224,-500.0,0.00016712,2]
[351409453,1738557042232,-574.02251724,0.00016712,2]
[351409454,1738557042242,-500.0,0.00016712,2]
[351409455,1738557042252,-295.56942474,0.00016712,2]
[351409456,1738557042262,-500.0,0.00016712,2]
[351409457,1738557042272,-500.0,0.00016712,2]
[351409458,1738557042281,-500.0,0.00016712,2]
[351409459,1738557042291,-350.32106997,0.00016712,2]
[351409460,1738557042302,-500.0,0.00016712,2]
[351409461,1738557042312,-500.0,0.00016712,2]
[351409462,1738557042322,-500.0,0.00016712,2]
[351409463,1738557042331,-500.0,0.00016712,2]
[351409464,1738557042341,-500.0,0.00016712,2]
[351409465,1738557042355,-681.72,0.00016712,2]
[351409466,1738557042364,-500.0,0.00016712,2]
[351409467,1738557042373,-500.0,0.00016712,2]
[351409468,1738557042382,-500.0,0.00016712,2]
[351409469,1738557042394,-500.0,0.00016712,2]
[351409470,1738557042404,-605.69,0.00016712,2]
[351409471,1738557042413,-500.0,0.00016712,2]
[351409472,1738557042423,-500.0,0.00016712,2]
[351409473,1738557042432,-500.0,0.00016712,2]
[351409474,1738557042446,-500.0,0.00016712,2]
[351409475,1738557042455,-500.0,0.00016712,2]
[351409476,1738557042465,-606.08,0.00016712,2]
[351409477,1738557042475,-500.0,0.00016712,2]
[351409478,1738557042485,-500.0,0.00016712,2]
[351409479,1738557042495,-500.0,0.00016712,2]
[351409480,1738557042504,-500.0,0.00016712,2]
[351409481,1738557042515,-500.0,0.00016712,2]
[351409482,1738557042525,-500.0,0.00016712,2]
[351409483,1738557042535,-500.0,0.00016712,2]
[351409484,1738557042545,-500.0,0.00016712,2]
[351409485,1738557042554,-500.0,0.00016712,2]
[351409486,1738557042564,-500.0,0.00016712,2]
[351409487,1738557042573,-500.0,0.00016712,2]
[351409488,1738557042583,-500.0,0.00016712,2]
[351409489,1738557042592,-542.12,0.00016712,2]
[351409490,1738557042602,-618.22591835,0.00016712,2]
[351409491,1738557042612,-406.76374039,0.00016712,2]
[351409492,1738557042621,-511.71,0.00016712,2]
[351409493,1738557042631,-500.0,0.00016712,2]
[351409494,1738557042641,-536.48609698,0.00016712,2]
[351409495,1738557042650,-500.0,0.00016712,2]
[351409496,1738557042660,-500.0,0.00016712,2]
[351409497,1738557042670,-1110.8,0.00016712,2]
[351409498,1738557042680,-500.0,0.00016712,2]
[351409499,1738557042694,-12926.36,0.00016712,2]
[351409500,1738557042704,-552.83,0.00016712,2]
[351409501,1738557042714,-500.0,0.00016712,2]
[351409502,1738557042724,-500.0,0.00016712,2]
[351409503,1738557042734,-500.0,0.00016712,2]
[351409504,1738557042743,-1286.63,0.00016712,2]
[351409505,1738557042753,-969.84,0.00016712,2]
[351409506,1738557042762,-500.0,0.00016712,2]
[351409507,1738557042772,-2675.49,0.00016712,2]
[351409508,1738557042781,-8643.22,0.00016712,2]
[351409509,1738557042791,-561.34,0.00016712,2]
[351409510,1738557042800,-156.48968797,0.00016712,2]
[351409511,1738557042809,-193.21539957,0.00016712,2]
[351409512,1738557042819,-1193.45,0.00016712,2]
[351409513,1738557042830,-500.0,0.00016712,2]
[351409514,1738557042839,-500.0,0.00016712,2]
[351409515,1738557042849,-612.53,0.00016712,2]
[351409516,1738557042859,-500.0,0.00016712,2]
[351409517,1738557042869,-1672.26,0.00016712,2]
[351409518,1738557042879,-520.13894029,0.00016712,2]
[351409519,1738557042889,-500.0,0.00016712,2]
[351409520,1738557042898,-500.0,0.00016712,2]
[351409521,1738557042908,-504.9539952,0.00016712,2]
[351409527,1738557043068,-500.0,0.00016712,2]
[351409529,1738557043078,-910.71,0.00016712,2]
[351409531,1738557043088,-529.44435928,0.00016712,2]
[351409533,1738557043097,-835.74,0.00016712,2]
[351409535,1738557043107,-414.21687319,0.00016712,2]
[351409541,1738557043134,-103.06350584,0.00016712,2]
[351409543,1738557043144,-500.0,0.00016712,2]
[351409545,1738557043153,-831.84,0.00016712,2]
[351409547,1738557043163,-467.93043593,0.00016712,2]
[351409550,1738557043175,-32.06956407,0.00016712,2]
[351409552,1738557043187,-2474.8,0.00016712,2]
[351409553,1738557043196,-500.0,0.00016712,2]
[351409555,1738557043205,-594.12,0.00016712,2]
[351409556,1738557043214,-500.0,0.00016712,2]
[351409558,1738557043225,-892.44,0.00016712,2]
[351409560,1738557043235,-157.34967231,0.00016712,2]
[351409561,1738557043245,-500.0,0.00016712,2]
[351409564,1738557043255,-513.07983784,0.00016712,2]
[351409566,1738557043264,-4300.26,0.00016712,2]
[351409567,1738557043273,-500.0,0.00016712,2]
[351409568,1738557043283,-3192.9,0.00016712,2]
[351409569,1738557043292,-500.0,0.00016712,2]
[351409570,1738557043301,-1783.89,0.00016712,2]
[351409571,1738557043310,-500.0,0.00016712,2]
[351409572,1738557043320,-500.0,0.00016712,2]
[351409573,1738557043329,-500.0,0.00016712,2]
[351409574,1738557043339,-500.0,0.00016712,2]
[351409575,1738557043353,-1724.01,0.00016712,2]
[351409576,1738557043362,-500.0,0.00016712,2]
[351409577,1738557043372,-604.66,0.00016712,2]
[351409578,1738557043382,-706.76,0.00016712,2]
[351409579,1738557043393,-6189.11,0.00016712,2]
[351409580,1738557043403,-795.0,0.00016712,2]
[351409581,1738557043412,-2150.6,0.00016712,2]
[351409582,1738557043422,-500.0,0.00016712,2]
[351409583,1738557043435,-500.0,0.00016712,2]
[351409584,1738557043445,-500.0,0.00016712,2]
[351409585,1738557043455,-500.0,0.00016712,2]
[351409586,1738557043465,-500.0,0.00016712,2]
[351409587,1738557043474,-500.0,0.00016712,2]
[351409588,1738557043483,-647.49,0.00016712,2]
[351409589,1738557043493,-500.0,0.00016712,2]
[351409590,1738557043502,-500.0,0.00016712,2]
[351409591,1738557043512,-480.58992077,0.00016712,2]
[351409592,1738557043521,-500.0,0.00016712,2]
[351409593,1738557043530,-500.0,0.00016712,2]
[351409595,1738557043540,-500.0,0.00016712,2]
[351409597,1738557043549,-500.0,0.00016712,2]
[351409599,1738557043559,-738.76,0.00016712,2]
[351409601,1738557043568,-213.81020559,0.00016749,2]
[351409602,1738557043577,-500.0,0.00016849,2]
[351409603,1738557043587,-500.0,0.00016849,2]
[351409605,1738557043596,-579.7222175,0.00016849,2]
[351409607,1738557043606,-500.0,0.00016849,2]
[351409608,1738557043615,-500.0,0.00016849,2]
[351409610,1738557043625,-500.0,0.00016849,2]
[351409611,1738557043634,-500.0,0.00016849,2]
[351409612,1738557043643,-500.0,0.00016849,2]
[351409613,1738557043652,-500.0,0.00016849,2]
[351409614,1738557043662,-500.0,0.00016849,2]
[351409615,1738557043671,-500.0,0.00016849,2]
[351409616,1738557043680,-500.0,0.00016849,2]
[351409617,1738557043692,-500.0,0.00016849,2]
[351409618,1738557043701,-500.0,0.00016849,2]
[351409620,1738557043711,-500.0,0.00016849,2]
[351409622,1738557043720,-500.0,0.00016849,2]
[351409623,1738557043729,-515.05762668,0.00016849,2]
[351409625,1738557043739,-681.72,0.00016849,2]
[351409626,1738557043748,-500.0,0.00016849,2]
[351409627,1738557043757,-500.0,0.00016849,2]
[351409628,1738557043767,-500.0,0.00016849,2]
[351409629,1738557043776,-500.0,0.00016849,2]
[351409630,1738557043785,-605.69,0.00016849,2]
[351409632,1738557043795,-312.0,0.00016849,2]
[351409634,1738557043804,-500.0,0.00016849,2]
[351409636,1738557043814,-500.0,0.00016849,2]
[351409638,1738557043823,-500.0,0.00016849,2]
[351409640,1738557043834,-606.08,0.00016849,2]
[351409642,1738557043843,-500.0,0.00016849,2]
[351409643,1738557043853,-500.0,0.00016849,2]
[351409644,1738557043863,-250.74428721,0.00016849,2]
[351409645,1738557043872,-500.0,0.00016849,2]
[351409646,1738557043881,-496.69558289,0.00016849,2]
[351409647,1738557043891,-500.0,0.00016849,2]
[351409648,1738557043900,-626.54902045,0.00016849,2]
[351409649,1738557043909,-500.0,0.00016849,2]
[351409650,1738557043919,-500.0,0.00016849,2]
[351409651,1738557043930,-500.0,0.00016849,2]
[351409652,1738557043944,-500.0,0.00016849,2]
[351409653,1738557043953,-207.54415717,0.00016849,2]
[351409654,1738557043963,-542.12,0.00016849,2]
[351409655,1738557043973,-500.0,0.00016849,2]
[351409656,1738557043982,-511.71,0.00016849,2]
[351409657,1738557043992,-500.0,0.00016849,2]
[351409658,1738557044002,-1110.8,0.00016849,2]
[351409659,1738557044011,-12926.36,0.00016849,2]
[351409660,1738557044020,-552.83,0.00016849,2]
[351409661,1738557044029,-530.65107731,0.00016849,2]
[351409662,1738557044039,-500.0,0.00016849,2]
[351409663,1738557044048,-500.0,0.00016849,2]
[351409664,1738557044057,-665.08134217,0.00016849,2]
[351409665,1738557044070,-621.54865783,0.00016849,2]
[351409666,1738557044079,-969.84,0.00016849,2]
[351409667,1738557044088,-500.0,0.00016849,2]
[351409668,1738557044098,-2675.49,0.00016849,2]
[351409669,1738557044107,-8643.22,0.00016849,2]
[351409670,1738557044116,-561.34,0.00016849,2]
[351409671,1738557044126,-1193.45,0.00016849,2]
[351409672,1738557044135,-500.0,0.00016849,2]
[351409673,1738557044145,-500.0,0.00016849,2]
[351409674,1738557044154,-612.53,0.00016849,2]
[351409675,1738557044163,-1672.26,0.00016849,2]
[351409676,1738557044173,-516.92843078,0.00016849,2]
[351409677,1738557044182,-500.0,0.00016849,2]
[351409678,1738557044194,-506.58122246,0.00016849,2]
[351409679,1738557044203,-910.71,0.00016849,2]
[351409680,1738557044213,-835.74,0.00016849,2]
[351409681,1738557044222,-500.0,0.00016849,2]
[351409682,1738557044231,-831.84,0.00016849,2]
[351409683,1738557044241,-500.0,0.00016849,2]
[351409684,1738557044250,-2474.8,0.00016849,2]
[351409685,1738557044259,-337.50211777,0.00016849,2]
[351409686,1738557044268,-594.12,0.00016849,2]
[351409687,1738557044278,-500.0,0.00016849,2]
[351409688,1738557044287,-892.44,0.00016849,2]
[351409689,1738557044296,-510.77215606,0.00016849,2]
[351409690,1738557044305,-4300.26,0.00016849,2]
[351409691,1738557044315,-500.0,0.00016849,2]
[351409692,1738557044324,-3192.9,0.00016849,2]
[351409693,1738557044334,-1783.89,0.00016849,2]
[351409694,1738557044344,-500.0,0.00016849,2]
[351409695,1738557044357,-500.0,0.00016849,2]
[351409696,1738557044366,-500.0,0.00016849,2]
[351409697,1738557044375,-1724.01,0.00016849,2]
[351409698,1738557044385,-500.0,0.00016849,2]
[351409699,1738557044395,-500.0,0.00016849,2]
[351409700,1738557044404,-604.66,0.00016849,2]
[351409701,1738557044413,-706.76,0.00016849,2]
[351409702,1738557044423,-6189.11,0.00016849,2]
[351409703,1738557044432,-795.0,0.00016849,2]
[351409704,1738557044443,-2150.6,0.00016849,2]
[351409705,1738557044453,-500.0,0.00016849,2]
[351409706,1738557044462,-500.0,0.00016849,2]
[351409707,1738557044471,-500.0,0.00016849,2]
[351409708,1738557044481,-500.0,0.00016849,2]
[351409709,1738557044490,-500.0,0.00016849,2]
[351409710,1738557044499,-500.0,0.00016849,2]
[351409711,1738557044508,-647.49,0.00016849,2]
[351409712,1738557044517,-500.0,0.00016849,2]
[351409713,1738557044527,-500.0,0.00016849,2]
[351409714,1738557044536,-500.0,0.00016849,2]
[351409715,1738557044545,-500.0,0.00016849,2]
[351409716,1738557044555,-500.0,0.00016849,2]
[351409717,1738557044565,-738.76,0.00016849,2]
[351409718,1738557044574,-215.35066251,0.000169,2]
[351409719,1738557044583,-153.0,0.00016904,2]
[351409720,1738557044592,-153.0,0.00016904,2]
[351409721,1738557044601,-215.3506623,0.00016934,2]
[351409722,1738557044610,-360.5887625,0.00016959,2]
[351409723,1738557044619,-430.5886292,0.00016959,2]
[351409724,1738557044628,-154.4475723,0.00016959,2]
[351409725,1738557044638,-215.3506623,0.00016969,2]
[351409726,1738557044647,-500.0,0.00016973,2]
[351409727,1738557044656,-500.0,0.00016973,2]
[351409728,1738557044665,-501.25690535,0.00016973,2]
[351409729,1738557044675,-500.0,0.00016973,2]
[351409730,1738557044685,-500.0,0.00016973,2]
[351409731,1738557044695,-500.0,0.00016986,2]
[351409732,1738557044704,-500.0,0.00016986,2]
[351409733,1738557044714,-516.0112694,0.00016986,2]
[351409734,1738557044723,-500.0,0.00016986,2]
[351409735,1738557044733,-500.0,0.00016986,2]
[351409736,1738557044742,-90.49862117,0.00016986,2]
[351409737,1738557044760,-409.50137883,0.00016986,2]
[351409738,1738557044770,-215.58936717,0.00016986,2]
[351409739,1738557044976,-500.0,0.00016438,2]
[351409740,1738557044987,-500.0,0.00016438,2]
[351409741,1738557044996,-500.0,0.00016438,2]
[351409742,1738557045006,-500.0,0.00016575,2]
[351409743,1738557045015,-500.0,0.00016575,2]
[351409744,1738557045024,-251.53,0.00016712,2]
[351409745,1738557045034,-500.0,0.00016712,2]
[351409746,1738557045043,-500.0,0.00016849,2]
[351409747,1738557045053,-284.41063283,0.00016986,2]
[351409748,1738557045062,-327.81420933,0.00016986,2]
[351409749,1738557045071,-500.0,0.00016986,2]
[351409750,1738557045080,-500.0,0.00016986,2]
[351409751,1738557045090,-500.0,0.00016986,2]
[351409752,1738557045099,-500.0,0.00016986,2]
[351409753,1738557045108,-681.72,0.00016986,2]
[351409754,1738557045117,-500.0,0.00016986,2]
[351409755,1738557045127,-500.0,0.00016986,2]
[351409756,1738557045136,-316.97220748,0.00016986,2]
[351409757,1738557045147,-183.02779252,0.00016986,2]
[351409758,1738557045156,-500.0,0.00016986,2]
[351409759,1738557045165,-605.69,0.00016986,2]
[351409760,1738557045174,-500.0,0.00016986,2]
[351409761,1738557045183,-500.0,0.00016986,2]
[351409762,1738557045193,-500.0,0.00016986,2]
[351409763,1738557045203,-606.08,0.00016986,2]
[351409764,1738557045212,-500.0,0.00016986,2]
[351409765,1738557045221,-500.0,0.00016986,2]
[351409766,1738557045230,-500.0,0.00016986,2]
[351409767,1738557045239,-500.0,0.00016986,2]
[351409768,1738557045248,-500.0,0.00016986,2]
[351409769,1738557045257,-500.0,0.00016986,2]
[351409770,1738557045266,-500.0,0.00016986,2]
[351409771,1738557045275,-542.12,0.00016986,2]
[351409772,1738557045284,-500.0,0.00016986,2]
[351409773,1738557045293,-511.71,0.00016986,2]
[351409774,1738557045303,-500.0,0.00016986,2]
[351409775,1738557045312,-1110.8,0.00016986,2]
[351409776,1738557045322,-12926.36,0.00016986,2]
[351409777,1738557045331,-552.83,0.00016986,2]
[351409778,1738557045341,-500.0,0.00016986,2]
[351409779,1738557045352,-1286.63,0.00016986,2]
[351409780,1738557045363,-969.84,0.00016986,2]
[351409781,1738557045373,-2675.49,0.00016986,2]
[351409782,1738557045383,-8643.22,0.00016986,2]
[351409783,1738557045393,-561.34,0.00016986,2]
[351409784,1738557045402,-1193.45,0.00016986,2]
[351409785,1738557045412,-500.0,0.00016986,2]
[351409786,1738557045420,-500.0,0.00016986,2]
[351409787,1738557045429,-612.53,0.00016986,2]
[351409788,1738557045443,-1672.26,0.00016986,2]
[351409789,1738557045452,-500.0,0.00016986,2]
[351409790,1738557045461,-910.71,0.00016986,2]
[351409791,1738557045470,-835.74,0.00016986,2]
[351409792,1738557045479,-500.0,0.00016986,2]
[351409793,1738557045489,-831.84,0.00016986,2]
[351409794,1738557045498,-2474.8,0.00016986,2]
[351409795,1738557045507,-594.12,0.00016986,2]
[351409796,1738557045516,-500.0,0.00016986,2]
[351409797,1738557045526,-892.44,0.00016986,2]
[351409798,1738557045536,-4300.26,0.00016986,2]
[351409799,1738557045545,-500.0,0.00016986,2]
[351409800,1738557045554,-3192.9,0.00016986,2]
[351409801,1738557045564,-1783.89,0.00016986,2]
[351409802,1738557045573,-624.01868067,0.00016986,2]
[351409803,1738557045582,-500.0,0.00016986,2]
[351409804,1738557045592,-500.0,0.00016986,2]
[351409805,1738557045601,-1724.01,0.00016986,2]
[351409806,1738557045611,-500.0,0.00016986,2]
[351409807,1738557045620,-500.0,0.00016986,2]
[351409808,1738557045630,-604.66,0.00016986,2]
[351409809,1738557045639,-706.76,0.00016986,2]
[351409810,1738557045649,-6189.11,0.00016986,2]
[351409811,1738557045659,-795.0,0.00016986,2]
[351409812,1738557045668,-2150.6,0.00016986,2]
[351409813,1738557045677,-500.0,0.00016986,2]
[351409814,1738557045691,-500.0,0.00016986,2]
[351409815,1738557045702,-500.0,0.00016986,2]
[351409816,1738557045712,-500.0,0.00016986,2]
[351409817,1738557045722,-500.0,0.00016986,2]
[351409818,1738557045731,-500.0,0.00016986,2]
[351409819,1738557045741,-647.49,0.00016986,2]
[351409820,1738557045751,-500.0,0.00016986,2]
[351409821,1738557045760,-500.0,0.00016986,2]
[351409822,1738557045770,-500.0,0.00016986,2]
[351409823,1738557045779,-500.0,0.00016986,2]
[351409824,1738557045789,-500.0,0.00016986,2]
[351409825,1738557045799,-738.76,0.00016986,2]
[351409826,1738557045809,-154.4475723,0.00016986,2]
[351409827,1738557045818,-215.6590378,0.00016986,2]
[351409828,1738557045828,-231.8935815,0.00016986,2]
[351409829,1738557045838,-215.6590378,0.00016986,2]
[351409830,1738557045847,-215.6590378,0.00016986,2]
[351409831,1738557045857,-214.2999118,0.00016986,2]
[351409832,1738557045867,-16601.89534781,0.00017,2]
[351409833,1738557045880,-1476.4990131,0.00017,2]
[351409842,1738557046681,-708.886127,0.000168,2]
[351409843,1738557046697,-153.0,0.00016904,2]
[351409844,1738557046706,-152.0,0.00016935,2]
[351409845,1738557046716,-4405.71449609,0.00017,2]
[351409846,1738557046726,-153131.76448958,0.00017,7]
[351409847,1738557046735,-215.3506623,0.00017003,2]
[351409848,1738557046744,-153.0,0.00017033,2]
[351409849,1738557046754,-215.3506623,0.00017038,2]
[351409850,1738557046763,-215.3506623,0.00017072,2]
[351409851,1738557046773,-708.9892088,0.00017096,2]
[351409852,1738557046782,-354.5475049,0.00017096,2]
[351409853,1738557046792,-354.5475049,0.00017096,2]
[351409854,1738557046802,-354.5475049,0.00017096,2]
[351409855,1738557046811,-354.5475049,0.00017096,2]
[351409856,1738557046821,-354.5475049,0.00017096,2]
[351409857,1738557046831,-354.5475049,0.00017096,2]
[351409858,1738557046840,-708.9905684,0.00017096,2]
[351409859,1738557046849,-705.2931567,0.00017096,2]
[351409860,1738557046859,-708.886127,0.00017096,2]
[351409861,1738557046868,-354.5475049,0.00017096,2]
[351409862,1738557046877,-191.993,0.000171,2]
[351409863,1738557046886,-215.3506623,0.00017107,2]
[351409864,1738557046896,-500.0,0.00017123,2]
[351409865,1738557046905,-500.0,0.00017123,2]
[351409866,1738557046915,-500.0,0.00017123,2]
[351409867,1738557046925,-500.0,0.00017123,2]
[351409868,1738557046935,-500.0,0.00017123,2]
[351409869,1738557046950,-500.0,0.00017123,2]
[351409870,1738557046960,-500.0,0.00017123,2]
[351409871,1738557046969,-500.0,0.00017123,2]
[351409872,1738557046978,-500.0,0.00017123,2]